bitfinex/quotes_SOLUSD_20250712
["timestamp","ask_amount","ask_price","bid_price","bid_amount"]
[1752345635237,17.52997578,160.26,160.25,31.52]
[1752345635543,16.83997578,160.26,160.25,31.52]
[1752345643048,17.53997578,160.26,160.25,31.52]
[1752345645149,17.56997578,160.26,160.25,31.52]
[1752345648755,16.86997578,160.26,160.25,31.52]
[1752345650937,16.86997578,160.26,160.25,32.23]
[1752345654162,16.86997578,160.26,160.25,42.23]
[1752345658742,16.86997578,160.26,160.25,32.23]
[1752345659044,16.86997578,160.26,160.25,42.23]
[1752345659470,16.86997578,160.26,160.25,32.23]
[1752345659659,16.86997578,160.26,160.25,42.23]
[1752345664580,16.86997578,160.26,160.25,32.23]
[1752345664869,16.86997578,160.26,160.25,42.23]
[1752345668270,16.86997578,160.26,160.25,32.23]
[1752345668476,16.86997578,160.26,160.25,42.23]
[1752345684483,17.52997578,160.26,160.25,41.5]
[1752345689001,16.86997578,160.26,160.25,41.5]
[1752345700607,17.57997578,160.26,160.25,41.5]
[1752345708599,16.86997578,160.26,160.25,41.5]
[1752345711220,17.57997578,160.26,160.25,41.5]
[1752345719521,16.86997578,160.26,160.25,41.5]
[1752345722909,16.86997578,160.26,160.25,42.21]
[1752345726508,16.86997578,160.26,160.25,45.13951736]
[1752345726708,0.03,160.26,160.25,45.13951736]
[1752345726909,0.03,160.26,160.25,42.21]
[1752345727430,0.03,160.26,160.25,42.83402496]
[1752345727738,0.03,160.26,160.25,62.54822629]
[1752345729237,0.03,160.26,160.25,59.61870893]
[1752345729440,0.03,160.26,160.25,62.54822629]
[1752345730344,0.03,160.26,160.25,59.61870893]
[1752345731038,0.73,160.26,160.25,10.06]
[1752345731231,0.03,160.26,160.25,41.48]
[1752345732916,0.73,160.26,160.25,41.48]
[1752345736844,0.73,160.26,160.25,31.48]
[1752345753026,0.03,160.26,160.25,31.48]
[1752345753230,0.03,160.26,160.25,32.18]
[1752345753430,0.03,160.26,160.25,31.48]
[1752345756030,0.03,160.26,160.25,32.18]
[1752345756535,0.03,160.26,160.25,31.48]
[1752345756964,0.75,160.26,160.25,31.48]
[1752345771090,17.53468397,160.26,160.25,0.06]
[1752345771261,17.53468397,160.26,160.25,31.48]
[1752345771678,19.07918397,160.26,160.25,31.48]
[1752345774376,23.26916219,160.26,160.25,31.48]
[1752345775078,29.90916219,160.26,160.25,0.06]
[1752345775280,29.90916219,160.26,160.25,31.48]
[1752345775477,53.44186909,160.26,160.25,31.48]
[1752345778588,18.41828397,160.22,160.21,0.06]
[1752345778768,22.60826219,160.22,160.21,0.06]
[1752345779088,45.22343466,160.22,160.21,0.06]
[1752345779671,45.22343466,160.22,160.21,31.5]
[1752345781995,45.21343523,160.22,160.21,31.5]
[1752345782174,41.03345644,160.22,160.21,31.5]
[1752345783498,45.20965752,160.22,160.21,31.5]
[1752345784081,41.03345644,160.22,160.21,31.5]
[1752345784283,45.20768625,160.22,160.21,31.5]
[1752345787306,41.03345644,160.22,160.21,31.5]
[1752345788507,45.20197183,160.22,160.21,31.5]
[1752345790114,41.03345644,160.22,160.21,31.5]
[1752345792994,39.39985644,160.22,160.21,31.5]
[1752345793185,38.67985644,160.22,160.21,31.5]
[1752345795506,39.34985644,160.22,160.21,31.5]
[1752345796700,38.67985644,160.22,160.21,31.5]
[1752345797583,39.34985644,160.22,160.21,31.5]
[1752345801914,38.67985644,160.22,160.21,32.2]
[1752345802416,21.89517247,160.22,160.21,32.2]
[1752345814530,21.89517247,160.22,160.21,31.5]
[1752345814822,39.34985644,160.22,160.21,31.5]
[1752345815814,39.34985644,160.22,160.21,0.06]
[1752345816009,43.53386606,160.22,160.21,31.48]
[1752345827250,42.86386606,160.22,160.21,31.48]
[1752345827455,43.54386606,160.22,160.21,31.48]
[1752345843750,16.78468397,160.17,160.16,0.06]
[1752345844258,32.39460082,160.17,160.16,0.06]
[1752345844453,36.57861044,160.17,160.16,0.06]
[1752345844763,32.39460082,160.17,160.16,0.74]
[1752345845066,32.39460082,160.17,160.16,32.18]
[1752345846470,36.57872604,160.17,160.16,32.18]
[1752345846646,32.39460082,160.17,160.16,32.18]
[1752345849659,32.39460082,160.17,160.16,31.5]
[1752345849978,33.06460082,160.17,160.16,31.5]
[1752345850148,33.06460082,160.17,160.13,5.9761]
[1752345850648,14.98040045,160.16,160.13,5.9761]
[1752345851273,14.98040045,160.16,160.14,31.44]
[1752345851574,14.98040045,160.16,160.13,5.9761]
[1752345852072,14.98040045,160.16,160.14,0.44]
[1752345852242,14.98040045,160.16,160.13,5.9761]
[1752345852447,15.65040045,160.16,160.13,6.4161]
[1752345852848,14.98040045,160.16,160.14,31.44]
[1752345853056,14.98040045,160.16,160.14,0.44]
[1752345853574,14.98040045,160.16,160.13,6.4161]
[1752345853949,14.98040045,160.16,160.14,0.44]
[1752345854654,31.76508442,160.16,160.15,31.44]
[1752345854858,31.76508442,160.16,160.14,0.44]
[1752345855057,32.43508442,160.16,160.13,5.9761]
[1752345855259,32.43508442,160.16,160.11,1.5557]
[1752345855260,17.45468397,160.15,160.11,1.5557]
[1752345855654,17.45468397,160.15,160.12,0.44]
[1752345856172,4.18417799,160.14,160.12,0.44]
[1752345856366,17.45468397,160.15,160.12,0.44]
[1752345857053,17.45468397,160.15,160.11,1.9957]
[1752345858667,17.45468397,160.15,160.12,31.44]
[1752345858978,17.45468397,160.15,160.11,1.9957]
[1752345859269,4.18467467,160.14,160.11,1.9957]
[1752345859456,17.45468397,160.15,160.11,1.9957]
[1752345859655,17.45468397,160.15,160.11,1.5557]
[1752345859857,17.45468397,160.15,160.12,0.44]
[1752345861070,17.45468397,160.15,160.13,31.44]
[1752345861278,16.78468397,160.15,160.13,0.44]
[1752345861749,15.65040045,160.16,160.13,0.44]
[1752345861949,16.78468397,160.15,160.11,1.5557]
[1752345862271,30.96318825,160.15,160.12,0.44]
[1752345862651,30.99318825,160.15,160.12,0.44]
[1752345862979,14.20850428,160.15,160.12,10.44]
[1752345863272,14.20850428,160.15,160.13,0.44]
[1752345863475,14.20850428,160.15,160.13,10.44]
[1752345863659,14.20850428,160.15,160.14,31.44]
[1752345863863,14.20850428,160.15,160.14,31.88]
[1752345868774,14.87850428,160.15,160.14,31.44]
[1752345868979,14.20850428,160.15,160.13,10.0]
[1752345870155,14.20850428,160.15,160.13,10.44]
[1752345870678,14.20850428,160.15,160.14,31.44]
[1752345870874,14.20850428,160.15,160.13,10.44]
[1752345871056,14.20850428,160.15,160.14,0.44]
[1752345871982,14.20850428,160.15,160.13,10.44]
[1752345872884,14.20850428,160.15,160.14,31.44]
[1752345875384,14.87850428,160.15,160.14,31.44]
[1752345877389,14.87850428,160.15,160.12,10.0]
[1752345879089,14.87850428,160.15,160.13,31.44]
[1752345879278,14.87850428,160.15,160.13,41.44]
[1752345879783,14.20850428,160.15,160.13,31.44]
[1752345879975,14.20850428,160.15,160.13,41.44]
[1752345880173,14.91850428,160.15,160.13,41.44]
[1752345880573,14.91850428,160.15,160.13,31.44]
[1752345880784,14.91850428,160.15,160.13,41.44]
[1752345881772,14.91850428,160.15,160.13,31.44]
[1752345882079,14.91850428,160.15,160.13,41.44]
[1752345882279,14.20850428,160.15,160.13,41.44]
[1752345884166,14.91850428,160.15,160.13,41.44]
[1752345885090,14.20850428,160.15,160.13,41.44]
[1752345885286,14.20850428,160.15,160.13,31.44]
[1752345885788,14.20850428,160.15,160.13,41.44]
[1752345886176,14.20850428,160.15,160.13,31.88]
[1752345886376,14.20850428,160.15,160.13,41.88]
[1752345886575,14.20850428,160.15,160.13,31.88]
[1752345886993,14.20850428,160.15,160.13,41.88]
[1752345887177,14.20850428,160.15,160.13,31.88]
[1752345887487,14.20850428,160.15,160.13,41.88]
[1752345889296,14.20850428,160.15,160.13,31.88]
[1752345889489,14.91850428,160.15,160.13,31.44]
[1752345889687,14.20850428,160.15,160.13,41.44]
[1752345890403,14.20850428,160.15,160.13,31.44]
[1752345890900,14.20850428,160.15,160.13,41.44]
[1752345891596,14.20850428,160.15,160.13,31.44]
[1752345892202,14.91850428,160.15,160.13,31.44]
[1752345892394,14.91850428,160.15,160.13,41.44]
[1752345895520,14.91850428,160.15,160.13,31.44]
[1752345896005,14.91850428,160.15,160.13,41.44]
[1752345896910,0.71,160.14,160.13,31.44]
[1752345899903,14.20850428,160.15,160.13,31.44]
[1752345899904,14.91850428,160.15,160.13,31.44]
[1752345903605,14.20850428,160.15,160.13,41.88]
[1752345903911,14.20850428,160.15,160.14,0.44]
[1752345904286,14.20850428,160.15,160.14,16.7764]
[1752345905306,14.20850428,160.15,160.14,19.70973085]
[1752345905694,7.54190428,160.15,160.14,124.49441482]
[1752345913519,7.54190428,160.15,160.14,143.20441482]
[1752345913825,5.87530428,160.15,160.14,144.72441482]
[1752345915024,0.73,160.25,160.24,10.0]
[1752345915224,0.03,160.25,160.24,41.42]
[1752345918624,0.03,160.25,160.24,42.4840639]
[1752345919595,0.03,160.25,160.24,41.86]
[1752345921609,0.03,160.25,160.24,42.4840639]
[1752345922837,0.03,160.25,160.24,41.86]
[1752345926028,0.03,160.25,160.24,123.98469572]
[1752345930024,0.03,160.25,160.24,123.54469572]
[1752345930541,0.03,160.25,160.24,123.98469572]
[1752345930833,0.73,160.25,160.24,123.54469572]
[1752345931924,0.73,160.25,160.24,41.42]
[1752345934235,0.03,160.25,160.24,41.42]
[1752345935742,0.03,160.25,160.24,41.86]
[1752345935944,0.03,160.25,160.24,41.42]
[1752345938555,0.69,160.25,160.24,41.42]
[1752345939957,0.03,160.25,160.24,41.42]
[1752345945832,0.69,160.25,160.24,41.42]
[1752345948551,0.69,160.25,160.23,36.92]
[1752345948853,0.69,160.25,160.24,31.38]
[1752345951233,0.69,160.25,160.23,36.92]
[1752345952344,0.69,160.25,160.24,31.4]
[1752345954446,0.69,160.25,160.21,10.0]
[1752345954868,0.69,160.25,160.22,10.0]
[1752345955242,0.69,160.25,160.2,10.0]
[1752345955643,0.69,160.25,160.21,31.4]
[1752345958963,0.69,160.25,160.21,41.4]
[1752345960766,0.69,160.25,160.21,31.4]
[1752345961475,16.78468397,160.24,160.19,26.92]
[1752345961771,2.3244,160.23,160.2,10.0]
[1752345961966,1.6644,160.23,160.19,26.92]
[1752345962146,0.66,160.22,160.19,26.92]
[1752345962762,0.66,160.22,160.2,31.4]
[1752345964761,0.66,160.22,160.19,26.92]
[1752345965367,0.66,160.22,160.2,10.0]
[1752345966378,17.44468397,160.22,160.21,31.4]
[1752345967964,0.66,160.22,160.21,31.4]
[1752345969657,1.6644,160.23,160.21,31.4]
[1752345969862,2.3144,160.23,160.21,31.4]
[1752345972687,0.65,160.24,160.21,31.4]
[1752345972986,0.65,160.24,160.22,10.0]
[1752345973170,0.65,160.24,160.21,31.84]
[1752345973171,0.65,160.24,160.23,31.4]
[1752345974590,0.03,160.25,160.23,31.4]
[1752345974794,0.68,160.25,160.23,31.4]
[1752345976495,0.65,160.24,160.23,31.4]
[1752345978991,0.65,160.24,160.2,10.0]
[1752345979173,0.65,160.24,160.19,36.92]
[1752345979370,0.65,160.24,160.19,26.92]
[1752345979571,0.65,160.24,160.19,36.92]
[1752345980071,0.65,160.24,160.2,31.4]
[1752345980271,0.65,160.24,160.2,41.4]
[1752345982674,0.65,160.24,160.2,10.0]
[1752345982875,0.65,160.24,160.21,31.4]
[1752345983797,0.68,160.25,160.21,31.84]
[1752345985478,0.65,160.24,160.21,31.4]
[1752345998704,0.68,160.24,160.21,31.4]
[1752346000388,0.68,160.24,160.21,31.84]
[1752346000583,0.03,160.24,160.21,31.84]
[1752346000806,0.03,160.24,160.22,10.44]
[1752346001001,0.03,160.24,160.23,31.4]
[1752346005995,0.03,160.24,160.23,41.4]
[1752346009714,0.03,160.24,160.23,41.84]
[1752346010814,0.03,160.24,160.23,31.84]
[1752346010990,0.03,160.24,160.23,41.84]
[1752346011191,0.03,160.24,160.23,41.4]
[1752346015111,0.03,160.24,160.23,41.84]
[1752346015488,0.03,160.24,160.23,31.84]
[1752346015695,0.03,160.24,160.23,41.84]
[1752346016918,0.03,160.24,160.23,31.4]
[1752346017097,0.03,160.24,160.23,41.4]
[1752346017492,0.03,160.24,160.23,31.4]
[1752346017693,0.03,160.24,160.23,41.4]
[1752346018101,0.03,160.24,160.23,31.4]
[1752346018306,0.03,160.24,160.23,41.4]
[1752346018510,0.03,160.24,160.23,41.84]
[1752346019614,0.03,160.24,160.23,41.4]
[1752346019818,0.03,160.24,160.23,41.84]
[1752346020398,0.03,160.24,160.23,41.4]
[1752346021298,0.03,160.24,160.23,41.84]
[1752346023030,0.03,160.24,160.23,41.4]
[1752346024721,0.03,160.24,160.23,31.4]
[1752346024923,0.03,160.24,160.23,41.4]
[1752346025103,0.03,160.24,160.23,31.4]
[1752346025304,0.03,160.24,160.23,41.4]
[1752346026428,0.03,160.24,160.23,31.4]
[1752346026606,0.03,160.24,160.23,41.4]
[1752346027327,0.7,160.24,160.23,41.4]
[1752346027526,0.7,160.24,160.23,31.4]
[1752346027828,0.7,160.24,160.23,41.4]
[1752346028123,0.7,160.24,160.23,31.4]
[1752346028330,0.7,160.24,160.23,41.4]
[1752346028624,0.03,160.24,160.23,41.4]
[1752346028826,0.03,160.24,160.23,31.4]
[1752346029027,0.03,160.24,160.23,41.4]
[1752346030521,0.03,160.24,160.23,31.4]
[1752346030828,0.03,160.24,160.23,41.4]
[1752346033132,0.03,160.24,160.23,31.4]
[1752346033340,0.03,160.24,160.23,41.4]
[1752346037836,0.03,160.24,160.23,41.84]
[1752346038035,0.03,160.24,160.23,31.84]
[1752346038236,0.03,160.24,160.23,41.84]
[1752346038835,0.03,160.24,160.23,41.4]
[1752346039849,0.03,160.24,160.23,41.84]
[1752346041433,0.03,160.24,160.23,42.46410285]
[1752346042315,0.03,160.25,160.23,48.62730285]
[1752346042516,0.03,160.25,160.23,48.18730285]
[1752346042732,0.03,160.25,160.24,10.44]
[1752346043231,0.03,160.25,160.24,11.0640639]
[1752346047415,0.03,160.25,160.24,93.18875962]
[1752346049233,0.7,160.25,160.24,92.12469572]
[1752346050640,0.7,160.25,160.24,10.0]
[1752346051015,0.7,160.25,160.23,41.4]
[1752346051215,0.7,160.25,160.24,10.0]
[1752346052346,0.7,160.25,160.23,41.4]
[1752346052544,0.7,160.25,160.24,10.0]
[1752346052736,0.7,160.25,160.23,31.4]
[1752346055840,0.7,160.25,160.23,41.4]
[1752346056532,0.7,160.25,160.23,31.4]
[1752346056839,0.7,160.25,160.19,26.92]
[1752346056840,2.2406,160.25,160.2,10.0]
[1752346057022,17.48468397,160.24,160.19,36.92]
[1752346057223,17.48468397,160.24,160.18,10.0]
[1752346057224,16.78468397,160.22,160.18,10.0]
[1752346057420,16.78468397,160.24,160.19,10.0]
[1752346057734,0.7,160.21,160.19,10.0]
[1752346057922,0.7,160.21,160.2,31.38]
[1752346058124,0.7,160.21,160.19,10.0]
[1752346059337,0.7,160.21,160.2,31.38]
[1752346059536,0.7,160.21,160.19,10.0]
[1752346060748,0.7,160.21,160.17,10.0]
[1752346060928,0.7,160.21,160.19,10.0]
[1752346061524,0.7,160.2,160.19,10.0]
[1752346062542,0.7,160.21,160.19,10.0]
[1752346062740,0.7,160.23,160.19,10.0]
[1752346063345,0.7,160.23,160.19,10.06]
[1752346064054,0.7,160.23,160.19,10.5]
[1752346064626,0.7,160.24,160.2,0.44]
[1752346064952,0.73,160.25,160.22,10.0]
[1752346065151,0.7,160.24,160.23,10.0]
[1752346065333,0.7,160.24,160.23,41.38]
[1752346065653,0.7,160.24,160.23,31.38]
[1752346066047,0.7,160.24,160.23,41.38]
[1752346067350,0.7,160.24,160.23,31.38]
[1752346067842,0.7,160.24,160.23,41.38]
[1752346068255,0.03,160.25,160.23,41.38]
[1752346068439,0.03,160.25,160.23,31.82]
[1752346068751,0.03,160.25,160.23,41.82]
[1752346069139,0.03,160.25,160.24,11.0640639]
[1752346072161,0.03,160.25,160.24,10.6240639]
[1752346072471,0.03,160.25,160.24,10.0]
[1752346074145,0.03,160.25,160.24,33.66008397]
[1752346079862,0.03,160.25,160.24,115.78477969]
[1752346081452,0.03,160.25,160.24,116.40884359]
[1752346083669,0.03,160.25,160.24,109.97344359]
[1752346085972,0.03,160.25,160.24,139.81948517]
[1752346086185,0.03,160.25,160.24,139.19542127]
[1752346089678,19.8583098,160.29,160.28,26.78468397]
[1752346089857,0.03,160.3,160.28,26.78468397]
[1752346089858,0.03,160.3,160.29,26.78468397]
[1752346090062,0.03,160.3,160.29,27.22468397]
[1752346090258,0.03,160.3,160.29,50.51342555]
[1752346091191,0.03,160.3,160.29,31.80342555]
[1752346091376,0.03,160.3,160.29,32.42729478]
[1752346091694,0.03,160.3,160.29,114.4919905]
[1752346097405,0.03,160.3,160.29,109.91324892]
[1752346097592,0.03,160.3,160.29,114.4919905]
[1752346100297,0.03,160.3,160.29,109.91324892]
[1752346100596,0.1,160.32,160.31,16.78468397]
[1752346100800,0.1,160.32,160.31,58.90847537]
[1752346101192,0.1,160.32,160.31,59.34847537]
[1752346101389,0.1,160.32,160.31,78.05847537]
[1752346104001,0.1,160.32,160.31,82.63721695]
[1752346106407,0.1,160.32,160.31,164.67191267]
[1752346106598,0.1,160.32,160.31,164.04812127]
[1752346106787,0.1,160.32,160.31,159.46937969]
[1752346106987,0.1,160.32,160.31,164.04812127]
[1752346108784,0.1,160.32,160.31,180.27316285]
[1752346109006,0.1,160.32,160.31,175.69442127]
[1752346109507,0.1,160.32,160.31,180.27316285]
[1752346109707,0.1,160.4,160.31,180.27316285]
[1752346109708,0.1,160.4,160.39,45.49468397]
[1752346109915,0.1,160.4,160.39,103.89468397]
[1752346110116,0.1,160.4,160.39,104.51816423]
[1752346110913,0.1,160.4,160.39,104.95816423]
[1752346111811,0.1,160.4,160.39,104.51816423]
[1752346112404,0.1,160.4,160.39,104.95816423]
[1752346112791,0.1,160.4,160.39,109.53690581]
[1752346113112,0.1,160.4,160.39,104.95816423]
[1752346114403,0.1,160.4,160.39,104.51816423]
[1752346114704,0.1,160.4,160.39,104.53816423]
[1752346115307,0.1,160.4,160.39,186.57285995]
[1752346115507,0.1,160.4,160.39,185.94937969]
[1752346119907,0.1,160.4,160.39,185.92937969]
[1752346130330,0.82,160.4,160.39,185.92937969]
[1752346130832,0.1,160.4,160.39,185.92937969]
[1752346136221,0.1,160.4,160.39,186.36937969]
[1752346138643,0.1,160.4,160.39,190.94812127]
[1752346138937,0.1,160.41,160.4,81.93469572]
[1752346139118,0.1,160.41,160.4,132.72813711]
[1752346139319,0.1,160.41,160.4,142.10469572]
[1752346140642,0.1,160.41,160.4,163.90812127]
[1752346142036,0.1,160.41,160.4,158.88937969]
[1752346142544,0.1,160.41,160.4,127.42937969]
[1752346142732,0.1,160.41,160.4,158.88937969]
[1752346143270,0.1,160.41,160.4,159.32937969]
[1752346143915,0.1,160.41,160.4,163.90812127]
[1752346144113,0.72,160.45,160.44,26.78468397]
[1752346144314,0.72,160.45,160.44,140.60266565]
[1752346144525,0.72,160.45,160.44,139.97937969]
[1752346144743,0.22,160.45,160.44,139.97937969]
[1752346145143,0.22,160.45,160.44,123.19469572]
[1752346147241,0.22,160.45,160.44,150.07469572]
[1752346147442,0.22,160.45,160.44,36.88]
[1752346147743,0.22,160.45,160.44,68.34]
[1752346149951,0.22,160.45,160.25,0.06]
[1752346149952,1.5398,160.43,160.25,0.06]
[1752346150130,16.78468397,160.4,160.25,0.06]
[1752346150333,16.78468397,160.38,160.32,32.2]
[1752346150534,4.8112913,160.37,160.25,0.74]
[1752346151038,16.78468397,160.35,160.25,0.74]
[1752346151351,16.78468397,160.35,160.25,1.36402496]
[1752346151849,6.3783,160.36,160.32,32.2]
[1752346152032,6.3783,160.36,160.25,1.36402496]
[1752346152233,6.3783,160.36,160.28,0.68]
[1752346152429,6.3783,160.36,160.29,0.68]
[1752346153140,6.3783,160.36,160.32,32.2]
[1752346153329,6.3783,160.36,160.27,0.62394708]
[1752346153532,0.3737,160.33,160.25,0.06]
[1752346153744,16.78468397,160.31,160.26,33.06]
[1752346154057,0.62336367,160.3,160.25,0.06]
[1752346154625,16.78468397,160.28,160.25,0.06]
[1752346155252,16.78468397,160.28,160.26,33.08]
[1752346155554,6.1264,160.29,160.26,33.08]
[1752346156657,17.40804764,160.28,160.23,0.2]
[1752346156846,0.3137,160.27,160.24,33.04]
[1752346157154,16.78468397,160.25,160.23,0.2]
[1752346157349,17.40804764,160.24,160.23,0.2]
[1752346158555,17.40804764,160.24,160.23,33.3]
[1752346161660,27.71110615,160.24,160.23,33.3]
[1752346163178,10.92642218,160.24,160.23,50.76468397]
[1752346163466,9.70854892,160.33,160.24,35.49468397]
[1752346163635,9.70854892,160.33,160.25,5.87526407]
[1752346163829,9.70854892,160.33,160.26,26.92]
[1752346164048,9.70854892,160.33,160.27,0.68]
[1752346165456,8.98854892,160.33,160.3,35.49468397]
[1752346165798,8.98854892,160.33,160.32,35.49468397]
[1752346166052,8.98854892,160.33,160.32,36.17468397]
[1752346166254,8.98854892,160.33,160.32,0.68]
[1752346168969,0.69,160.4,160.32,0.68]
[1752346168970,0.69,160.44,160.35,16.78468397]
[1752346169180,0.69,160.44,160.37,16.78468397]
[1752346169474,0.69,160.44,160.38,0.62351914]
[1752346172944,0.69,160.44,160.39,33.32]
[1752346173777,10.89206924,160.44,160.39,33.32]
[1752346174149,0.69,160.43,160.39,33.32]
[1752346174684,0.69,160.42,160.39,33.32]
[1752346174974,0.69,160.41,160.39,33.32]
[1752346175176,10.23206924,160.44,160.39,33.32]
[1752346175354,0.69,160.4,160.39,33.32]
[1752346175757,0.69,160.42,160.39,33.32]
[1752346176154,10.23206924,160.44,160.4,43.30652536]
[1752346176352,10.23206924,160.44,160.41,0.69]
[1752346176673,10.23206924,160.44,160.42,33.5]
[1752346178566,10.23206924,160.44,160.42,34.19]
[1752346180585,10.23206924,160.44,160.43,0.69]
[1752346182662,10.23206924,160.44,160.43,36.18468397]
[1752346184082,10.23206924,160.44,160.43,43.8001284]
[1752346184462,10.23206924,160.44,160.43,70.6801284]
[1752346184664,0.03,160.44,160.43,70.6801284]
[1752346184985,0.03,160.44,160.43,96.44468397]
[1752346185192,0.03,160.44,160.43,97.06800878]
[1752346186059,0.1,160.5,160.43,97.06800878]
[1752346186060,0.1,160.5,160.46,26.0]
[1752346186268,0.76,160.57,160.52,18.71]
[1752346186573,10.50691401,160.56,160.53,33.56]
[1752346186783,9.84691401,160.56,160.53,33.56]
[1752346186963,10.50691401,160.56,160.53,34.18293652]
[1752346187167,9.84691401,160.56,160.53,34.18293652]
[1752346187476,9.84691401,160.56,160.48,1.3131306]
[1752346187477,0.66,160.55,160.48,1.3131306]
[1752346187666,0.66,160.55,160.49,33.58]
[1752346188302,0.66,160.55,160.5,0.62305295]
[1752346188459,0.66,160.54,160.5,0.62305295]
[1752346189099,0.66,160.54,160.5,1.31305295]
[1752346189266,9.84691401,160.56,160.5,1.31305295]
[1752346189467,10.50691401,160.56,160.5,1.31305295]
[1752346190780,0.66,160.55,160.49,33.58]
[1752346191982,9.73369905,160.55,160.49,33.58]
[1752346192287,0.66,160.54,160.49,33.58]
[1752346197395,0.66,160.54,160.49,33.64]
[1752346199483,0.62336367,160.53,160.49,33.64]
[1752346199787,0.66,160.52,160.49,0.06]
[1752346199989,0.62336367,160.51,160.49,0.06]
[1752346200489,6.8251,160.5,160.49,0.06]
[1752346200887,23.60978397,160.5,160.49,33.46]
[1752346201590,16.78468397,160.48,160.43,26.88]
[1752346201793,1.28336367,160.47,160.43,26.88]
[1752346201989,0.62336367,160.47,160.43,26.88]
[1752346202197,0.66,160.46,160.43,26.88]
[1752346202384,0.62336367,160.45,160.37,26.88]
[1752346202587,0.66,160.44,160.37,26.88]
[1752346202778,0.66,160.44,160.38,33.38]
[1752346207896,0.62336367,160.43,160.38,33.38]
[1752346208273,0.68,160.42,160.38,33.38]
[1752346208902,7.6368,160.41,160.38,33.38]
[1752346209083,0.68,160.4,160.38,33.38]
[1752346209886,7.6368,160.41,160.38,33.38]
[1752346210600,8.3168,160.41,160.38,33.38]
[1752346213090,0.68,160.43,160.39,0.69]
[1752346215481,8.6882,160.45,160.4,0.69]
[1752346215678,0.68,160.44,160.41,33.24]
[1752346215896,0.68,160.43,160.41,33.24]
[1752346218998,8.0082,160.45,160.41,33.93]
[1752346219301,8.0082,160.45,160.41,33.24]
[1752346219505,0.68,160.44,160.41,33.24]
[1752346220794,0.68,160.43,160.41,33.24]
[1752346222611,0.68,160.42,160.41,33.24]
[1752346222805,0.68,160.42,160.38,0.06]
[1752346223010,17.40804764,160.44,160.38,0.06]
[1752346223011,0.68,160.41,160.38,0.06]
[1752346223589,0.68,160.4,160.38,0.06]
[1752346223995,0.68,160.4,160.39,33.1]
[1752346225715,0.68,160.42,160.39,33.1]
[1752346226217,0.68,160.41,160.39,33.1]
[1752346227728,0.68,160.43,160.39,33.1]
[1752346228013,0.68,160.42,160.39,33.1]
[1752346228737,0.68,160.41,160.39,33.1]
[1752346236631,0.71,160.4,160.39,33.1]
[1752346237540,0.71,160.4,160.38,0.06]
[1752346238207,0.71,160.39,160.38,0.06]
[1752346238834,0.71,160.39,160.38,32.96]
[1752346240417,0.71,160.4,160.38,32.96]